fUST/lending_fUST_20250408
["ID","MTS","AMOUNT","RATE_DAILY","PERIOD"]
[357499718,1744090262100,-2904.26224771,0.00029574,23]
[357499719,1744090262109,-155.15343014,0.00029589,2]
[357499720,1744090262119,-150.53591522,0.00029589,2]
[357499721,1744090262129,-150.88368867,0.00029589,2]
[357499722,1744090262139,-3688.35066179,0.00029594,25]
[357499723,1744090262149,-251.3,0.00029653,2]
[357499724,1744090262158,-2000.0,0.00029668,4]
[357499725,1744090262168,-150.193,0.0002975,2]
[357499726,1744090262177,-50000.0,0.000299,5]
[357499727,1744090262187,-205.096391,0.000299,7]
[357499728,1744090262197,-205.096391,0.000299,7]
[357499729,1744090262206,-422.665962,0.000299,7]
[357499730,1744090262216,-422.665962,0.000299,7]
[357499731,1744090262226,-151.0,0.000299,7]
[357499732,1744090262236,-151.0,0.000299,7]
[357499733,1744090262246,-190.872034,0.000299,7]
[357499734,1744090262255,-151.0,0.000299,7]
[357499735,1744090262265,-190.872034,0.000299,7]
[357499736,1744090262275,-1466.74622,0.000299,2]
[357499737,1744090262286,-91221.12231111,0.0003,3]
[357499738,1744090262296,-155.12168338,0.0003,2]
[357499739,1744090262306,-151.0,0.0003,7]
[357499740,1744090262316,-1387.17015603,0.0003,7]
[357499741,1744090262331,-151.0,0.0003,2]
[357499742,1744090262340,-837.41003169,0.0003,3]
[357499743,1744090262350,-153.70153521,0.0003,10]
[357499744,1744090262360,-1514.39431799,0.0003,7]
[357499745,1744090262370,-200.0,0.00030136,2]
[357499746,1744090262379,-500.0,0.00030137,30]
[357499747,1744090262390,-506.5078414,0.00030352,5]
[357499748,1744090262400,-1000.0,0.00030352,5]
[357499749,1744090262410,-2170.474648,0.00030424,24]
[357499750,1744090262421,-390.1040898,0.00030856,5]
[357499751,1744090262432,-501.55578929,0.00030856,5]
[357499752,1744090262442,-1098.35081077,0.00030992,5]
[357499753,1744090262453,-705.27607404,0.00030992,5]
[357499754,1744090262464,-1000.0,0.00030992,5]
[357499755,1744090262475,-1000.0,0.00030992,5]
[357499756,1744090262486,-804.70270583,0.00030992,5]
[357499757,1744090262496,-604.60346185,0.00030992,5]
[357499758,1744090262505,-501.54608834,0.00030992,5]
[357499759,1744090262515,-501.99160187,0.00030992,5]
[357499760,1744090262525,-627.87137,0.00031444,30]
[357499761,1744090262535,-200.0,0.00031506,2]
[357499762,1744090262545,-367.5245434,0.00031532,30]
[357499763,1744090262555,-359.9796305,0.00031532,30]
[357499764,1744090262565,-359.9796305,0.00031532,30]
[357499765,1744090262579,-157.167506,0.00031562,14]
[357499766,1744090262590,-208.52134871,0.000318,7]
[357499767,1744090262599,-543.0,0.00032392,2]
[357499768,1744090262609,-907.424,0.00032392,2]
[357499769,1744090262619,-150.0,0.00032392,2]
[357499770,1744090262629,-175.379525,0.00032468,2]
[357499771,1744090262639,-157.167506,0.00032468,2]
[357499772,1744090262648,-160.0,0.00032549,3]
[357499773,1744090262658,-500.0,0.00032604,7]
[357499774,1744090262668,-2200.0,0.00032604,2]
[357499775,1744090262678,-200.0,0.00032876,2]
[357499776,1744090262688,-550.0,0.00032877,30]
[357499777,1744090262697,-1000.0,0.00032877,5]
[357499778,1744090262707,-647.15021826,0.00033,120]
[357499779,1744090262717,-443205.09767118,0.00033,2]
[357499780,1744090262727,-2781.15533292,0.00033,5]
[357499781,1744090262736,-160.0,0.00033074,4]
[357499782,1744090262745,-160.0,0.00033599,5]
[357499783,1744090262755,-6579.26025965,0.00033698,4]
[357499784,1744090262765,-1053.85,0.00034,2]
[357499785,1744090262774,-49.70433413,0.000341,7]
[357499786,1744090262784,-500.0,0.000341,7]
[357499787,1744090262794,-160.0,0.00034124,6]
[357499788,1744090262806,-200.0,0.00034246,2]
[357499789,1744090262818,-160.0,0.00034649,7]
[357499790,1744090262831,-4566.788,0.000348,30]
[357499791,1744090262840,-250.49597576,0.00034973,5]
[357499792,1744090262851,-289863.25609166,0.00035,7]
[357499793,1744090262861,-508.99062487,0.00035,120]
[357499794,1744090262870,-2000.0,0.00035,15]
[357499795,1744090262880,-2000.0,0.00035,15]
[357499796,1744090262890,-2000.0,0.00035,15]
[357499797,1744090262900,-2000.0,0.00035,15]
[357499798,1744090262910,-2000.0,0.00035,15]
[357499799,1744090262920,-2000.0,0.00035,15]
[357499800,1744090262929,-2000.0,0.00035,15]
[357499801,1744090262938,-2000.0,0.00035,15]
[357499802,1744090262948,-2000.0,0.00035,15]
[357499803,1744090262957,-2000.0,0.00035,15]
[357499804,1744090262967,-2000.0,0.00035,15]
[357499805,1744090262977,-1472.0,0.00035,15]
[357499806,1744090262986,-1258.74,0.00035,2]
[357499807,1744090262996,-150.0,0.00035,69]
[357499808,1744090263005,-4000.0,0.00035,3]
[357499809,1744090263015,-38149.89803666,0.00035,30]
[357499810,1744090263025,-151.0,0.00035,14]
[357499811,1744090263035,-151.0,0.00035,2]
[357499812,1744090263046,-205.096391,0.00035,14]
[357499813,1744090263056,-205.096391,0.00035,14]
[357499814,1744090263067,-422.665962,0.00035,14]
[357499815,1744090263081,-422.665962,0.00035,14]
[357499816,1744090263092,-151.0,0.00035,14]
[357499817,1744090263102,-151.0,0.00035,14]
[357499818,1744090263112,-190.872034,0.00035,14]
[357499819,1744090263122,-151.0,0.00035,14]
[357499820,1744090263132,-190.872034,0.00035,14]
[357499821,1744090263142,-1466.74621404,0.00035,2]
[357499822,1744090263151,-419.46366559,0.00035,30]
[357499823,1744090263161,-837.41003169,0.00035,30]
[357499824,1744090263171,-837.41003169,0.00035,7]
[357499825,1744090263180,-47912.05135771,0.00035,10]
[357499826,1744090263190,-155.7737875,0.00035094,30]
[357499827,1744090263200,-153.0,0.00035094,30]
[357499828,1744090263257,-150.0,0.000351,2]
[357499829,1744090263268,-160.0,0.00035174,8]
[357499830,1744090263278,-575.0894872,0.00035273,30]
[357499831,1744090263288,-543.0,0.00035392,2]
[357499832,1744090263298,-150.0,0.00035392,2]
[357499833,1744090263308,-167.49456348,0.00035616,2]
[357499834,1744090263318,-500.0,0.00035616,7]
[357499835,1744090263330,-500.0,0.00035616,7]
[357499836,1744090263340,-500.0,0.00035616,7]
[357499837,1744090263350,-500.0,0.00035616,7]
[357499838,1744090263360,-500.0,0.00035616,7]
[357499839,1744090263369,-500.0,0.00035616,7]
[357499840,1744090263379,-500.0,0.00035616,7]
[357499841,1744090263388,-500.0,0.00035616,7]
[357499842,1744090263397,-500.0,0.00035616,7]
[357499843,1744090263407,-500.0,0.00035616,7]
[357499844,1744090263417,-500.0,0.00035616,7]
[357499845,1744090263427,-500.0,0.00035616,7]
[357499846,1744090263437,-500.0,0.00035616,7]
[357499847,1744090263447,-500.0,0.00035616,7]
[357499848,1744090263458,-500.0,0.00035616,7]
[357499849,1744090263468,-500.29432207,0.00035616,7]
[357499850,1744090263477,-500.0,0.00035616,7]
[357499851,1744090263487,-500.0,0.00035616,7]
[357499852,1744090263497,-1062.92,0.00035686,2]
[357499853,1744090263507,-160.0,0.00035699,9]
[357499854,1744090263516,-396.9,0.000357,14]
[357499855,1744090263527,-1667.24,0.000357,7]
[357499856,1744090263537,-319766.01,0.000357,30]
[357499857,1744090263547,-151.0,0.000357,14]
[357499858,1744090263557,-151.0,0.000357,2]
[357499859,1744090263567,-500.0,0.000357,13]
[357499860,1744090263577,-205.096391,0.000357,14]
[357499861,1744090263587,-205.096391,0.000357,14]
[357499862,1744090263597,-422.665962,0.000357,14]
[357499863,1744090263607,-422.66597,0.000357,14]
[357499864,1744090263616,-151.0,0.000357,14]
[357499865,1744090263627,-151.0,0.000357,14]
[357499866,1744090263637,-190.872034,0.000357,14]
[357499867,1744090263647,-151.0,0.000357,14]
[357499868,1744090263657,-190.872026,0.000357,14]
[357499869,1744090263667,-500.0,0.00035973,5]
[357499870,1744090263677,-150.0,0.00035973,5]
[357499871,1744090263686,-151.3115747,0.00035973,2]
[357499872,1744090263696,-150.16802362,0.00035973,5]
[357499873,1744090263706,-70835.39770982,0.0003599,2]
[357499874,1744090263716,-123499.32551376,0.00036,2]
[357499875,1744090263831,-2919.94858981,0.00036,2]
[357499876,1744090263844,-7097.05341611,0.00036,2]
[357499877,1744090264034,-500.0,0.00019981,2]
[357499878,1744090264044,-500.0,0.00019981,2]
[357499879,1744090264054,-732.17,0.00020256,2]
[357499880,1744090264063,-118.72589005,0.0002053,2]
[357499881,1744090264077,-324.65567513,0.0002053,2]
[357499883,1744090331417,-208.165646,0.00019882,2]
[357499886,1744090960556,-160.0,0.00019,2]
[357499887,1744090960581,-5.99634864,0.00019873,2]
[357499888,1744090979348,-344.86286795,0.00019873,2]
[357499889,1744090979373,-20.13585455,0.00019873,2]
[357499890,1744090985062,-300.0,0.00019879,2]
[357499891,1744090985086,-125.4212775,0.0001988,2]
[357499892,1744091193036,-202.93328963,0.0001988,2]
[357499893,1744091202533,-172.165714,0.0001988,2]
[357499894,1744091213965,-172.165714,0.00019681,2]
[357499895,1744091213989,-127.834286,0.00019781,2]
[357499896,1744091244850,-151.97833225,0.00019781,2]
[357499897,1744091245507,-208.0,0.00019781,2]
[357499901,1744091387047,-175.2567,0.00018906,2]
[357499902,1744091428003,4000.0,0.00022,10]
[357499950,1744091438188,-4.9790605,0.00018906,2]
[357499951,1744091438198,-236.0,0.00019879,2]
[357499952,1744091438209,-500.0,0.00019879,2]
[357499953,1744091438218,-152.04184998,0.0001988,2]
[357499954,1744091438229,-500.0,0.0001988,2]
[357499955,1744091438240,-500.0,0.0001988,2]
[357499956,1744091438250,-500.0,0.0001988,2]
[357499957,1744091438261,-500.0,0.0001988,2]
[357499958,1744091438271,-500.0,0.0001988,2]
[357499959,1744091438281,-500.0,0.0001988,2]
[357499960,1744091438291,-500.0,0.0001988,2]
[357499961,1744091438301,-500.0,0.0001988,2]
[357499962,1744091438312,-500.0,0.0001988,2]
[357499963,1744091438323,-1348.23,0.0001988,2]
[357499964,1744091438332,-500.0,0.0001988,2]
[357499965,1744091438342,-500.0,0.0001988,2]
[357499966,1744091438353,-500.0,0.0001988,2]
[357499967,1744091438363,-200.0,0.0001988,2]
[357499968,1744091438373,-491.87219215,0.0001988,2]
[357499969,1744091438383,-500.0,0.0001988,2]
[357499970,1744091438393,-500.0,0.0001988,2]
[357499971,1744091438403,-500.0,0.0001988,2]
[357499972,1744091438414,-500.0,0.0001988,2]
[357499973,1744091438424,-500.0,0.0001988,2]
[357499974,1744091438434,-500.0,0.0001988,2]
[357499975,1744091438443,-1331.39,0.0001988,2]
[357499976,1744091438454,-650.82,0.0001988,2]
[357499977,1744091438464,-500.0,0.0001988,2]
[357499978,1744091438473,-500.0,0.0001988,2]
[357499979,1744091438483,-500.0,0.0001988,2]
[357499980,1744091438496,-500.0,0.0001988,2]
[357499981,1744091438506,-500.0,0.0001988,2]
[357499982,1744091438517,-615.21,0.0001988,2]
[357499983,1744091438526,-500.0,0.0001988,2]
[357499984,1744091438536,-559.62,0.0001988,2]
[357499985,1744091438546,-578.92,0.0001988,2]
[357499986,1744091438555,-11402.09779149,0.0001988,2]
[357499987,1744091438566,-741.4,0.0001988,2]
[357499988,1744091438576,-231.5,0.0001988,2]
[357499989,1744091438585,-500.0,0.00019881,2]
[357499990,1744091438596,-421.9457672,0.00019881,2]
[357499991,1744091438608,-500.0,0.00019881,2]
[357499992,1744091438618,-500.0,0.00019881,2]
[357499993,1744091438628,-500.0,0.00019881,2]
[357499994,1744091438637,-500.0,0.00019881,2]
[357499995,1744091438647,-500.0,0.00019881,2]
[357499996,1744091438657,-500.0,0.00019881,2]
[357499997,1744091438667,-500.0,0.00019881,2]
[357499998,1744091438677,-505.05815143,0.00019881,2]
[357499999,1744091438687,-500.0,0.00019881,2]
[357500000,1744091438698,-500.0,0.00019881,2]
[357500001,1744091438709,-500.0,0.00019881,2]
[357500002,1744091438719,-500.0,0.00019881,2]
[357500003,1744091438729,-419.68284768,0.00019881,2]
[357500004,1744091438739,-500.0,0.00019881,2]
[357500005,1744091438749,-500.0,0.00019881,2]
[357500006,1744091438759,-500.0,0.00019881,2]
[357500007,1744091438768,-500.0,0.00019881,2]
[357500008,1744091438778,-500.0,0.00019881,2]
[357500009,1744091438788,-500.0,0.00019881,2]
[357500010,1744091438798,-518.56589971,0.00019881,2]
[357500011,1744091438807,-500.0,0.00019881,2]
[357500012,1744091438817,-500.0,0.00019881,2]
[357500013,1744091438826,-500.0,0.00019881,2]
[357500014,1744091438837,-500.0,0.00019881,2]
[357500015,1744091438847,-500.0,0.00019881,2]
[357500016,1744091438856,-500.0,0.00019881,2]
[357500017,1744091438866,-500.0,0.00019881,2]
[357500018,1744091438876,-500.0,0.00019881,2]
[357500019,1744091438886,-540.5,0.00019881,2]
[357500020,1744091438895,-500.0,0.00019881,2]
[357500021,1744091438904,-500.0,0.00019881,2]
[357500022,1744091438914,-500.0,0.00019881,2]
[357500023,1744091438924,-465.90722828,0.00019881,2]
[357500024,1744091438933,-500.0,0.00019881,2]
[357500025,1744091438943,-779.93,0.00019881,2]
[357500026,1744091438953,-500.0,0.00019881,2]
[357500027,1744091438962,-500.0,0.00019881,2]
[357500028,1744091438972,-500.0,0.00019881,2]
[357500029,1744091438981,-500.0,0.00019881,2]
[357500030,1744091438991,-500.0,0.00019881,2]
[357500031,1744091439001,-561.68,0.00019881,2]
[357500032,1744091439011,-500.0,0.00019881,2]
[357500033,1744091439022,-500.0,0.00019881,2]
[357500034,1744091439032,-500.0,0.00019881,2]
[357500035,1744091439041,-500.0,0.00019881,2]
[357500036,1744091439051,-500.0,0.00019881,2]
[357500037,1744091439061,-500.0,0.00019881,2]
[357500038,1744091439071,-512.71905753,0.00019881,2]
[357500039,1744091439081,-500.0,0.00019881,2]
[357500040,1744091439090,-2133.33,0.00019881,2]
[357500041,1744091439100,-500.3,0.00019881,2]
[357500042,1744091439110,-500.0,0.00019881,2]
[357500043,1744091439119,-500.0,0.00019881,2]
[357500044,1744091439129,-500.0,0.00019881,2]
[357500045,1744091439139,-500.0,0.00019881,2]
[357500046,1744091439149,-500.0,0.00019881,2]
[357500047,1744091439163,-649.84,0.00019881,2]
[357500048,1744091439173,-500.0,0.00019881,2]
[357500049,1744091439183,-582.3,0.00019881,2]
[357500050,1744091439194,-662.31,0.00019881,2]
[357500051,1744091439212,-500.0,0.00019881,2]
[357500052,1744091439227,-500.0,0.00019881,2]
[357500053,1744091439238,-500.0,0.00019881,2]
[357500054,1744091439247,-366.9692044,0.00019881,2]
[357500055,1744091439258,-500.0,0.00019881,2]
[357500056,1744091439268,-500.0,0.00019881,2]
[357500057,1744091439278,-500.0,0.00019881,2]
[357500058,1744091439289,-500.0,0.00019881,2]
[357500059,1744091439302,-636.6,0.00019881,2]
[357500060,1744091439312,-500.0,0.00019881,2]
[357500061,1744091439327,-500.0,0.00019881,2]
[357500062,1744091439337,-500.0,0.00019881,2]
[357500063,1744091439347,-369791.834354,0.00019882,2]
[357500064,1744091439356,-500.0,0.0001998,2]
[357500065,1744091439366,-500.0,0.0001998,2]
[357500066,1744091439377,-500.0,0.0001998,2]
[357500067,1744091439387,-500.0,0.0001998,2]
[357500068,1744091439397,-500.0,0.0001998,2]
[357500069,1744091439406,-500.0,0.0001998,2]
[357500070,1744091439429,-287.35902612,0.0001998,2]
[357500071,1744091439438,-500.0,0.0001998,2]
[357500072,1744091439449,-500.0,0.0001998,2]
[357500073,1744091439460,-500.0,0.0001998,2]
[357500074,1744091439471,-500.0,0.0001998,2]
[357500075,1744091439481,-500.0,0.0001998,2]
[357500076,1744091439491,-500.0,0.0001998,2]
[357500077,1744091439501,-588.302168,0.0001998,2]
[357500078,1744091439511,-500.0,0.0001998,2]
[357500079,1744091439521,-500.0,0.0001998,2]
[357500080,1744091439531,-500.0,0.0001998,2]
[357500081,1744091439542,-500.0,0.0001998,2]
[357500082,1744091439551,-500.0,0.0001998,2]
[357500083,1744091439561,-500.0,0.0001998,2]
[357500084,1744091439571,-500.0,0.0001998,2]
[357500085,1744091439581,-500.0,0.0001998,2]
[357500086,1744091439592,-230.39,0.0001998,2]
[357500087,1744091439602,-500.0,0.0001998,2]
[357500088,1744091439612,-500.0,0.0001998,2]
[357500089,1744091439622,-500.0,0.0001998,2]
[357500090,1744091439631,-500.0,0.0001998,2]
[357500091,1744091439642,-500.0,0.0001998,2]
[357500092,1744091439651,-500.0,0.0001998,2]
[357500093,1744091439662,-500.0,0.0001998,2]
[357500094,1744091439672,-500.0,0.0001998,2]
[357500095,1744091439682,-531.32267701,0.0001998,2]
[357500096,1744091439692,-500.0,0.0001998,2]
[357500097,1744091439702,-500.0,0.0001998,2]
[357500098,1744091439712,-500.0,0.0001998,2]
[357500099,1744091439722,-500.0,0.0001998,2]
[357500100,1744091439732,-500.0,0.0001998,2]
[357500102,1744091439741,-500.0,0.0001998,2]
[357500104,1744091439751,-500.0,0.0001998,2]
[357500106,1744091439761,-500.0,0.0001998,2]
[357500107,1744091439772,-862.6,0.0001998,2]
[357500108,1744091439782,-500.0,0.0001998,2]
[357500109,1744091439792,-500.0,0.0001998,2]
[357500110,1744091439801,-500.0,0.0001998,2]
[357500111,1744091439811,-500.0,0.0001998,2]
[357500112,1744091439821,-515.71217314,0.0001998,2]
[357500113,1744091439831,-500.0,0.0001998,2]
[357500114,1744091439841,-500.0,0.0001998,2]
[357500115,1744091439851,-500.0,0.0001998,2]
[357500116,1744091439861,-582.01,0.0001998,2]
[357500117,1744091439871,-500.0,0.0001998,2]
[357500118,1744091439881,-500.0,0.0001998,2]
[357500119,1744091439890,-500.0,0.0001998,2]
[357500120,1744091439900,-500.0,0.0001998,2]
[357500121,1744091439910,-500.0,0.0001998,2]
[357500122,1744091439920,-500.0,0.0001998,2]
[357500123,1744091439930,-500.0,0.0001998,2]
[357500124,1744091439940,-500.0,0.0001998,2]
[357500125,1744091439951,-500.0,0.0001998,2]
[357500126,1744091439960,-500.0,0.0001998,2]
[357500127,1744091439970,-500.0,0.0001998,2]
[357500128,1744091439980,-500.0,0.0001998,2]
[357500129,1744091439990,-500.0,0.0001998,2]
[357500130,1744091440000,-631.31216223,0.0001998,2]
[357500131,1744091440010,-500.0,0.0001998,2]
[357500132,1744091440020,-599.08557868,0.0001998,2]
[357500133,1744091440030,-500.0,0.0001998,2]
[357500134,1744091440040,-401.47142844,0.0001998,2]
[357500135,1744091440051,-319.30812002,0.0001998,2]
[357500136,1744091440060,-500.0,0.0001998,2]
[357500137,1744091440071,-500.0,0.0001998,2]
[357500138,1744091440081,-500.0,0.0001998,2]
[357500139,1744091440091,-500.0,0.00019982,2]
[357500140,1744091440101,-502.26143825,0.00019982,2]
[357500141,1744091440110,-500.0,0.00019982,2]
[357500142,1744091440121,-590.1571824,0.00019983,2]
[357500143,1744091440130,-500.0,0.00019983,2]
[357500144,1744091440144,-500.0,0.00019983,2]
[357500145,1744091440153,-500.0,0.00019983,2]
[357500146,1744091440164,-500.0,0.00019983,2]
[357500147,1744091440173,-500.0,0.00020153,2]
[357500148,1744091440186,-500.0,0.00020154,2]
[357500149,1744091440196,-548.21095869,0.00020154,2]
[357500150,1744091440205,-500.0,0.00020154,2]
[357500151,1744091440217,-1348.23,0.00020154,2]
[357500152,1744091440226,-500.0,0.00020154,2]
[357500153,1744091440236,-500.0,0.00020154,2]
[357500154,1744091440246,-500.0,0.00020154,2]
[357500155,1744091440255,-1331.39,0.00020154,2]
[357500156,1744091440265,-650.82,0.00020154,2]
[357500157,1744091440274,-500.0,0.00020154,2]
[357500159,1744091440284,-500.0,0.00020154,2]
[357500161,1744091440294,-500.0,0.00020154,2]
[357500162,1744091440304,-500.0,0.00020154,2]
[357500163,1744091440315,-500.0,0.00020154,2]
[357500164,1744091440325,-615.21,0.00020154,2]
[357500165,1744091440334,-559.62,0.00020154,2]
[357500166,1744091440344,-578.92,0.00020154,2]
[357500167,1744091440354,-741.4,0.00020154,2]
[357500168,1744091440364,-500.0,0.00020155,2]
[357500169,1744091440373,-187.25732811,0.00020155,2]
[357500170,1744091440383,-358.18521018,0.00020155,2]
[357500171,1744091440393,-500.0,0.00020155,2]
[357500172,1744091440403,-500.0,0.00020155,2]
[357500173,1744091440414,-500.0,0.00020155,2]
[357500174,1744091440424,-540.5,0.00020155,2]
[357500175,1744091440434,-500.0,0.00020155,2]
[357500176,1744091440444,-500.0,0.00020155,2]
[357500177,1744091440454,-779.93,0.00020155,2]
[357500178,1744091440466,-500.0,0.00020155,2]
[357500179,1744091440480,-500.0,0.00020155,2]
[357500180,1744091440490,-561.68,0.00020155,2]
[357500181,1744091440500,-500.0,0.00020155,2]
[357500182,1744091440510,-500.0,0.00020155,2]
[357500183,1744091440519,-500.0,0.00020155,2]
[357500184,1744091440529,-2133.33,0.00020155,2]
[357500185,1744091440538,-500.3,0.00020155,2]
[357500186,1744091440548,-500.0,0.00020155,2]
[357500187,1744091440557,-500.0,0.00020155,2]
[357500188,1744091440567,-582.3,0.00020155,2]
[357500189,1744091440577,-662.31,0.00020155,2]
[357500190,1744091440586,-500.0,0.00020155,2]
[357500191,1744091440596,-500.0,0.00020155,2]
[357500192,1744091440605,-500.0,0.00020155,2]
[357500193,1744091440616,-636.6,0.00020155,2]
[357500195,1744091440626,-500.0,0.00020155,2]
[357500196,1744091440635,-500.0,0.00020254,2]
[357500197,1744091440646,-500.0,0.00020254,2]
[357500198,1744091440656,-500.0,0.00020254,2]
[357500199,1744091440667,-500.0,0.00020254,2]
[357500200,1744091440677,-500.0,0.00020254,2]
[357500201,1744091440687,-500.0,0.00020254,2]
[357500202,1744091440697,-574.37626806,0.00020254,2]
[357500203,1744091440706,-500.0,0.00020254,2]
[357500204,1744091440716,-500.0,0.00020254,2]
[357500205,1744091440725,-862.6,0.00020254,2]
[357500206,1744091440735,-500.0,0.00020254,2]
[357500207,1744091440745,-500.0,0.00020254,2]
[357500208,1744091440754,-582.01,0.00020254,2]
[357500209,1744091440764,-500.0,0.00020254,2]
[357500210,1744091440773,-227.09267116,0.00020254,2]
[357500211,1744091440783,-500.0,0.00020254,2]
[357500212,1744091440793,-500.0,0.00020254,2]
[357500213,1744091440802,-500.0,0.00020254,2]
[357500214,1744091440812,-500.0,0.00020256,2]
[357500215,1744091440821,-500.0,0.00020257,2]
[357500216,1744091440831,-500.0,0.00020427,2]
[357500217,1744091440841,-500.0,0.00020428,2]
[357500218,1744091440850,-1348.23,0.00020428,2]
[357500219,1744091440859,-500.0,0.00020428,2]
[357500220,1744091440868,-500.0,0.00020428,2]
[357500221,1744091440878,-500.0,0.00020428,2]
[357500222,1744091440888,-1331.39,0.00020428,2]
[357500223,1744091440897,-650.82,0.00020428,2]
[357500224,1744091440906,-500.0,0.00020428,2]
[357500225,1744091440917,-500.0,0.00020428,2]
[357500226,1744091440927,-500.0,0.00020428,2]
[357500227,1744091440937,-500.0,0.00020428,2]
[357500228,1744091440947,-500.0,0.00020428,2]
[357500229,1744091440956,-615.21,0.00020428,2]
[357500230,1744091440966,-559.62,0.00020428,2]
[357500231,1744091440976,-578.92,0.00020428,2]
[357500232,1744091440985,-741.4,0.00020428,2]
[357500233,1744091440995,-500.0,0.00020429,2]
[357500234,1744091441004,-500.0,0.00020429,2]
[357500235,1744091441014,-500.0,0.00020429,2]
[357500236,1744091441024,-540.5,0.00020429,2]
[357500237,1744091441034,-500.0,0.00020429,2]
[357500238,1744091441043,-500.0,0.00020429,2]
[357500239,1744091441053,-779.93,0.00020429,2]
[357500240,1744091441063,-500.0,0.00020429,2]
[357500241,1744091441072,-500.0,0.00020429,2]
[357500242,1744091441082,-561.68,0.00020429,2]
[357500243,1744091441091,-500.0,0.00020429,2]
[357500244,1744091441101,-500.0,0.00020429,2]
[357500245,1744091441111,-500.0,0.00020429,2]
[357500246,1744091441120,-2133.33,0.00020429,2]
[357500247,1744091441130,-500.3,0.00020429,2]
[357500248,1744091441141,-500.0,0.00020429,2]
[357500249,1744091441151,-500.0,0.00020429,2]
[357500250,1744091441161,-582.3,0.00020429,2]
[357500251,1744091441173,-662.31,0.00020429,2]
[357500252,1744091441183,-500.0,0.00020429,2]
[357500253,1744091441192,-500.0,0.00020429,2]
[357500254,1744091441202,-636.6,0.00020429,2]
[357500255,1744091441211,-500.0,0.00020528,2]
[357500256,1744091441222,-500.0,0.00020528,2]
[357500257,1744091441233,-500.0,0.00020528,2]
[357500258,1744091441242,-500.0,0.00020528,2]
[357500259,1744091441251,-500.0,0.00020528,2]
[357500260,1744091441261,-500.0,0.00020528,2]
[357500261,1744091441270,-500.0,0.00020528,2]
[357500262,1744091441280,-862.6,0.00020528,2]
[357500263,1744091441289,-500.0,0.00020528,2]
[357500264,1744091441299,-500.0,0.00020528,2]
[357500265,1744091441308,-582.01,0.00020528,2]
[357500266,1744091441317,-500.0,0.00020528,2]
[357500267,1744091441327,-500.0,0.00020528,2]
[357500268,1744091441337,-500.0,0.00020528,2]
[357500269,1744091441347,-500.0,0.0002053,2]
[357500270,1744091441356,-647.24994431,0.00020531,2]
[357500271,1744091441365,-500.0,0.00020567,2]
[357500272,1744091441374,-500.0,0.00020662,2]
[357500273,1744091441384,-500.0,0.00020662,2]
[357500274,1744091441394,-500.0,0.00020698,2]
[357500275,1744091441403,-500.0,0.00020698,2]
[357500276,1744091441413,-500.0,0.00020698,2]